[Event "Super United Croatia GCT Blitz 2022"]
[Site "Zagreb"]
[Date "2022.07.23"]
[Round "3"]
[White "Firouzja, Alireza"]
[Black "Dominguez Perez, Leinier"]
[Result "0-1"]
[ECO "A45"]
[WhiteElo "2793"]
[BlackElo "2754"]
[Annotator "TA"]
[PlyCount "118"]
[EventDate "2022.07.20"]
[EventType "tourn"]
[EventCountry "CRO"]
[SourceTitle "playchess.com"]
[Source "ChessBase"]
[SourceQuality "1"]
[TimeControl "300+2"]

{[%evp 9,118,16,36,33,35,44,39,29,32,40,38,41,57,36,39,32,64,21,50,27,37,25,34,0,0,0,0,0,0,-11,58,56,58,-6,1,-13,-13,-9,-10,-55,-65,-38,-22,-32,-33,-28,-28,-45,3,-14,53,49,125,10,52,-94,-21,-12,-14,-24,-12,-202,-197,-213,-228,-322,-330,-412,-393,-442,-425,-697,-499,-648,-628,-3425,-3598,-1850,-1794,-1270,-862,-837,-861,-853,-837,-810,-810,-727,-714,-29991,-1080,-1025,-1011,-994,-973,-29987,-1045,-1045,-990,-1095,-1080,-1028,-1027,-1075,-1060,-5791,-1164,-5106,-1120,-1150,-1125]} 1. d4 {[%emt 0:00:01]} d5 {[%emt 0:00:00]} 2. Bg5 {[%emt 0:00:04]} Nf6 {[%emt 0:00:05]} 3. e3 {[%emt 0:00:02]} Ne4 {[%emt 0:00:13]} 4. Bf4 {[%emt 0:00:04]} Bf5 {[%emt 0:00:05]} 5. f3 {[%emt 0:00:16]} Nf6 {[%emt 0:00:10][%cal Oc7c5]} 6. Nc3 {[%emt 0:00:06] A45: Trompowsky Attack.} e6 {[%emt 0:00:07]} 7. g4 {[%emt 0:00:08]} Bg6 {[%emt 0:00:01]} 8. h4 {[%emt 0:00:01] White is slightly better.} h6 {[%emt 0:00:20]} 9. Bd3 {[%emt 0:00:02]} Bxd3 {[%emt 0:00:02]} 10. Qxd3 {[%emt 0:00:06]} Bd6 {[%emt 0:00:09]} 11. Nge2 {[%emt 0:00:08]} Nc6 {[%emt 0:00:54]} 12. O-O-O {[%emt 0:00:09]} a6 {[%emt 0:00:07] [#]} 13. Kb1 $146 {[%emt 0:00:55]} ({Predecessor:} 13. g5 Nh5 14. Bxd6 Qxd6 15. e4 Nf4 16. Qe3 Nxe2+ 17. Nxe2 O-O-O 18. e5 Qb4 19. Rdg1 hxg5 20. hxg5 {1-0 (37) Gomez Ledo,R (2446)-Lopez Martin,C (2100) Dos Hermanas 2021}) 13... Qe7 {[%emt 0:00:29]} 14. g5 {[%emt 0:00:29]} Nh5 {[%emt 0:00:04]} 15. Bxd6 {[%emt 0:00:02]} Qxd6 {[%emt 0:00:03]} 16. e4 {[%emt 0:00:45]} O-O-O {[%emt 0:00:13]} 17. e5 {[%emt 0:00:01]} Qe7 {[%emt 0:00:11]} 18. f4 {[%emt 0:00:17]} g6 {[%emt 0:00:15]} 19. Na4 {[%emt 0:00:01]} Kb8 {[%emt 0:00:24]} (19... Qb4 $11 20. Nc5 Ne7) 20. Nc5 $14 {[%emt 0:00:07]} Ka7 {[%emt 0:00:04]} 21. Ka1 {[%emt 0:00:14]} (21. Qa3 $1 $14) 21... Nb8 {[%emt 0:00:13]} 22. Rh3 {[%emt 0:01:02]} b6 {[%emt 0:00:07]} 23. Nb3 $40 {[%emt 0:00:02][%mdl 128] White attacks.} Ng7 {[%emt 0:00:03]} 24. c4 {[%emt 0:00:01]} hxg5 {[%emt 0:00:13]} 25. fxg5 {[%emt 0:00:01]} dxc4 {[%emt 0:00:28]} 26. Qxc4 {[%emt 0:00:01]} Nf5 {[%emt 0:00:04]} 27. Rc1 {[%emt 0:00:13]} Rd7 {[%emt 0:00:19]} 28. Nc3 {[%emt 0:00:15]} Kb7 {[%emt 0:00:19]} (28... Qd8 $15 {deserves consideration.}) 29. a4 {[%emt 0:00:04]} Rhd8 {[%emt 0:00:12]} ({Black should try} 29... a5 $11) 30. Ne2 $1 {[%emt 0:00:06]} a5 {[%emt 0:00:02] [#]} (30... Rh8 $14) 31. h5 {[%emt 0:00:11]} ({Better is} 31. Nxa5+ $1 $16 {[%mdl 512]} Ka7 32. Rb3 $1) 31... gxh5 {[%emt 0:00:01] [#]} 32. Rxh5 {[%emt 0:00:02] [#]} (32. Nxa5+ $1 $14 {stays ahead.} Ka7 33. Nb3) 32... Qb4 {[%emt 0:00:05]} (32... c6 $1 $17) 33. Qxb4 $11 {[%emt 0:00:05]} axb4 {[%emt 0:00:00]} 34. Rh7 {[%emt 0:00:02]} Nc6 {[%emt 0:00:03]} 35. Rc4 $2 {[%emt 0:00:05] [#] White does not recover from this.} (35. Rf1 $11 {and White stays safe.}) 35... Rg8 $1 $19 {[%emt 0:00:03]} 36. a5 {[%emt 0:00:01]} Nxa5 {[%emt 0:00:01]} 37. Nxa5+ {[%emt 0:00:03]} (37. Rxb4 {was necessary.} Nxb3+ 38. Rxb3) 37... bxa5 38. Rh5 {[%emt 0:00:03]} Rgd8 {[%emt 0:00:03][%cal Rf5d4]} 39. Rh7 {[%emt 0:00:01]} Nxd4 {[%emt 0:00:02]} 40. Nc1 {[%emt 0:00:03]} (40. Nxd4 $142 Rxd4 41. Rxd4 Rxd4 42. b3) 40... Nc6 {[%emt 0:00:05]} 41. Nb3 {[%emt 0:00:01]} Kb6 {[%emt 0:00:00] Hoping for ...Rd1+.} 42. Nc5 {[%emt 0:00:02]} Rd1+ {[%emt 0:00:02]} 43. Ka2 {[%emt 0:00:01]} Kb5 {[%emt 0:00:00]} 44. Rhh4 {[%emt 0:00:04]} a4 {[%emt 0:00:02]} 45. Nxa4 {[%emt 0:00:01]} b3+ {[%emt 0:00:02]} 46. Kxb3 {[%emt 0:00:04]} Na5+ {[%emt 0:00:01]} 47. Ka2 {[%emt 0:00:01]} Nxc4 {[%emt 0:00:02]} 48. Nc3+ {[%emt 0:00:01]} Kc5 {[%emt 0:00:01] ( -> ...Ra8+)} 49. Kb3 {[%emt 0:00:03]} Na5+ {[%emt 0:00:01]} (49... Rb8+ $142 50. Nb5 Rxb5+ 51. Kc2 Ne3+ 52. Kc3 Rc1+ 53. Kd3 Rb3+ 54. Kd2 Rc2+ 55. Ke1 Rbxb2 56. Rc4+ Rxc4 57. g6 Rc1#) 50. Ka2 {[%emt 0:00:00]} R1d4 {[%emt 0:00:03]} 51. Rh7 {[%emt 0:00:02]} R8d7 {[%emt 0:00:01]} 52. Ne2 {[%emt 0:00:02]} Ra4+ {[%emt 0:00:01]} (52... Rb4 $142 53. Nc1 Rd2 54. Ka1 Rd1 55. Rh3 Rxc1+ 56. Ka2 Ra4+ 57. Ra3 Kb4 58. Rxa4+ Kxa4 59. b4 Kxb4 60. Kb2 Nb3 61. g6 fxg6 62. Ka2 Kc3 63. Ka3 Ra1#) 53. Kb1 {[%emt 0:00:01] Black is clearly winning.} Re4 {[%emt 0:00:03]} 54. Nc3 {[%emt 0:00:04]} Re1+ {[%emt 0:00:02]} 55. Ka2 {[%emt 0:00:01]} Kc6 {[%emt 0:00:01]} 56. Rh4 {[%emt 0:00:02]} Rxe5 {[%emt 0:00:04]} 57. b4 {[%emt 0:00:01]} Nb7 {[%emt 0:00:02] Strongly threatening ...Rd2+.} 58. Rg4 {[%emt 0:00:03]} Nd6 {[%emt 0:00:04]} 59. Kb3 {[%emt 0:00:01]} Re3 {[%emt 0:00:01] Weighted Error Value: White=0.57/Black=0.29 (precise)} 0-1

[Event "Super United Croatia GCT Blitz 2022"]
[Site "Zagreb"]
[Date "2022.07.23"]
[Round "3"]
[White "Nepomniachtchi, Ian"]
[Black "Saric, Ivan"]
[Result "1-0"]
[ECO "A07"]
[WhiteElo "2766"]
[BlackElo "2680"]
[Annotator "TA"]
[PlyCount "67"]
[EventDate "2022.07.20"]
[EventType "tourn"]
[EventCountry "CRO"]
[SourceTitle "playchess.com"]
[Source "ChessBase"]
[SourceQuality "1"]
[TimeControl "300+2"]

{[%evp 12,67,0,-4,0,0,0,-16,2,-33,-15,0,25,35,33,29,16,27,55,48,77,79,85,106,241,22,51,68,139,141,244,246,280,272,262,268,264,266,266,258,298,172,236,227,229,170,242,242,489,493,483,477,550,537,564,550,680,650]} 1. Nf3 {[%emt 0:00:01]} Nf6 {[%emt 0:00:00][%cal Bg8f6,Bf6d7,Bd7b6][%mdl 32]} 2. g3 {[%emt 0:00:02]} d5 {[%emt 0:00:02]} 3. Bg2 {[%emt 0:00:02]} g6 {[%emt 0:00:00]} 4. O-O {[%emt 0:00:05]} Bg7 {[%emt 0:00:01]} 5. c4 {[%emt 0:00:01]} dxc4 {[%emt 0:00:04]} 6. Qa4+ {[%emt 0:00:04]} Nfd7 {[%emt 0:00:02]} 7. Qxc4 {[%emt 0:00:01]} O-O {[%emt 0:00:03] A07: Réti Opening: New York and Capablanca Systems.} 8. Qc2 $5 {[%emt 0:00:02][%mdl 4] Exploring less charted territory.} Nc6 {[%emt 0:00:03] Prevents d4.} 9. Nc3 {[%emt 0:00:02]} Nb6 {[%emt 0:00:06] The position is equal.} 10. b3 $5 {[%emt 0:00:07][%mdl 4] Leaves trodden paths.} Bf5 {[%emt 0:00:26]} 11. d3 {[%emt 0:00:02] [#]} Qd7 $146 {[%emt 0:00:05]} ({Predecessor (2):} 11... Bg4 12. Qd2 Qd7 13. Re1 e5 14. Ba3 Rfe8 15. Rac1 Rad8 16. Ne4 Qc8 17. Qg5 Nd5 18. Nc5 h6 {½-½ (42) Duncan,C (2310)-Moore,G (2210) England 1995}) 12. Bb2 {[%emt 0:00:01]} Bh3 {[%emt 0:00:11]} 13. Ne4 {[%emt 0:00:02] And now Nc5 would win.} Bxg2 {[%emt 0:00:07]} 14. Kxg2 {[%emt 0:00:01]} Nb4 {[%emt 0:01:12]} 15. Qd2 {[%emt 0:00:02] [#] Hoping for Bxg7.} Bxb2 {[%emt 0:00:09]} 16. Qxb2 {[%emt 0:00:02]} c6 {[%emt 0:00:12]} 17. h4 {[%emt 0:00:14][%cal Oh4h5] White is more active.} h5 {[%emt 0:00:19]} (17... f6 $16 {was necessary.}) 18. Qe5 $2 {[%emt 0:00:09]} (18. Qd2 $18) 18... f6 {[%emt 0:00:24]} 19. Qf4 {[%emt 0:00:02] Black must now prevent Nc5.} N4d5 {[%emt 0:00:28] Black is on the road to losing.} (19... Qg4 $14) 20. Qh6 $16 {[%emt 0:00:03]} Qe8 {[%emt 0:00:05]} (20... Rf7 $16 {keeps fighting.}) 21. Nc5 $18 {[%emt 0:00:06][%cal Be4c5,Bc5b7,Bb7d6][%mdl 32]} e5 {[%emt 0:00:23]} 22. Nxb7 {[%emt 0:00:06] Nd6 is the strong threat.} Qf7 {[%emt 0:00:18]} 23. Nd6 {[%emt 0:00:03]} Qg7 {[%emt 0:00:10]} 24. Qxg7+ {[%emt 0:00:02]} Kxg7 {[%emt 0:00:00]} 25. Rfc1 $40 {[%emt 0:00:03][%mdl 128] White has strong attack.} Ne7 {[%emt 0:00:01]} 26. Nd2 {[%emt 0:00:10]} (26. d4 $142) 26... Rfd8 {[%emt 0:00:03]} (26... a5 $142 27. Nf3 Rfd8) 27. Nb7 {[%emt 0:00:02]} Rd5 {[%emt 0:00:04]} 28. Ne4 {[%emt 0:00:03][%cal Bd2e4,Be4c5,Bc5e6,Be6c7,Bc7d5][%mdl 32]} f5 {[%emt 0:00:08]} (28... a5 $142 29. Nc3 Rd7) 29. Nec5 {[%emt 0:00:13] Strongly threatening Ne6+.} a5 $2 {[%emt 0:00:06] [#]} (29... Kf7 30. Rc2 Re8) 30. Ne6+ {[%emt 0:00:01] White is clearly winning.} Kf6 {[%emt 0:00:04]} 31. Nc7 {[%emt 0:00:01][%csl LRa8,LRd5]} Ra7 {[%emt 0:00:10]} 32. Nxd5+ {[%emt 0:00:05]} cxd5 {[%emt 0:00:10]} 33. Rc7 {[%emt 0:00:21]} Na8 {[%emt 0:00:08]} 34. Rd7 {[%emt 0:00:01] Weighted Error Value: White=0.26 (precise) /Black=0.46} 1-0

[Event "Super United Croatia GCT Blitz 2022"]
[Site "Zagreb"]
[Date "2022.07.23"]
[Round "3"]
[White "Mamedyarov, Shakhriyar"]
[Black "Vachier-Lagrave, Maxime"]
[Result "1-0"]
[ECO "D94"]
[WhiteElo "2759"]
[BlackElo "2760"]
[Annotator "TA"]
[PlyCount "105"]
[EventDate "2022.07.20"]
[EventType "tourn"]
[EventCountry "CRO"]
[SourceTitle "playchess.com"]
[Source "ChessBase"]
[SourceQuality "1"]
[TimeControl "300+2"]

{[%evp 19,105,0,0,0,0,-8,-7,-8,20,25,20,20,20,26,15,-37,-53,-47,-52,-41,9,-96,0,0,0,0,0,0,0,0,0,0,0,0,0,0,0,-16,-10,-29,-7,-10,0,0,0,0,16,16,16,14,16,16,16,16,16,0,5,4,20,0,22,0,0,0,0,0,760,753,743,14,14,14,14,0,14,0,653,20,20,20,20,20,29968,29968,29970,29971,29970,12822]} 1. d4 {[%emt 0:00:12]} Nf6 {[%emt 0:00:01]} 2. c4 {[%emt 0:00:01]} g6 {[%emt 0:00:02]} 3. Nc3 {[%emt 0:00:01]} d5 {[%emt 0:00:01]} 4. Nf3 {[%emt 0:00:01]} Bg7 {[%emt 0:00:01]} 5. e3 {[%emt 0:00:01]} O-O {[%emt 0:00:06]} 6. cxd5 {[%emt 0:00:01]} Nxd5 {[%emt 0:00:01]} 7. Bc4 {[%emt 0:00:01]} Nxc3 {[%emt 0:00:01]} 8. bxc3 {[%emt 0:00:01]} c5 {[%emt 0:00:02]} 9. O-O {[%emt 0:00:02]} Qc7 {[%emt 0:00:05] The main line 9...Qc7 scores better than 9...Nc6.} 10. Qe2 {[%emt 0:00:02]} Nc6 {[%emt 0:00:07]} 11. Rd1 {[%emt 0:00:22] D94: Grünfeld: 4 Nf3 Bg7 5 e3.} b6 {[%emt 0:00:14]} 12. e4 $5 {[%emt 0:00:09][%mdl 4] Exploring less charted territory.} Bg4 {[%emt 0:00:01] Hoping for ...cxd4.} 13. Be3 {[%emt 0:00:03] [#] The position is equal.} Rad8 $146 {[%emt 0:00:02]} ({Predecessor:} 13... cxd4 14. cxd4 e5 15. Bd5 exd4 16. Rac1 dxe3 17. Rxc6 exf2+ 18. Qxf2 Qf4 19. h3 Bxf3 20. Qxf3 Qxf3 21. gxf3 {½-½ (44) Obolentseva,A (2305)-Papp,P (2336) Tornelo INT 2020}) 14. Rac1 {[%emt 0:00:03]} e6 {[%emt 0:00:36]} 15. Bg5 {[%emt 0:00:46]} cxd4 {[%emt 0:00:15]} 16. Bxd8 {[%emt 0:00:03]} Rxd8 {[%emt 0:00:01]} 17. cxd4 {[%emt 0:00:41]} (17. Bb5 $1 $11 Bxf3 18. gxf3) 17... Nxd4 $15 {[%emt 0:00:04]} 18. Qe3 {[%emt 0:00:03][%cal Rd1d4] Strongly threatening Rxd4.} Bxf3 {[%emt 0:00:08]} 19. gxf3 {[%emt 0:00:03]} Qe7 {[%emt 0:00:31]} (19... e5 $15) 20. Ba6 {[%emt 0:00:32]} (20. f4 $11) 20... Qh4 {[%emt 0:00:29]} (20... e5 $17 21. Rc8 Rxc8 22. Bxc8 h5) 21. f4 $1 $11 {[%emt 0:00:09]} e5 {[%emt 0:00:09]} 22. Qg3 {[%emt 0:00:09]} Qxf4 {[%emt 0:01:16]} 23. Qxf4 {[%emt 0:00:09]} exf4 {[%emt 0:00:01]} 24. Kf1 {[%emt 0:00:15]} Be5 $1 {[%emt 0:00:05] Prevents Rc7.} 25. Rc8 {[%emt 0:00:04]} Rxc8 {[%emt 0:00:01]} 26. Bxc8 {[%emt 0:00:01][%mdl 4096] Endgame KRB-KBN} Kf8 {[%emt 0:00:08]} 27. Rc1 {[%emt 0:00:10]} Ke7 {[%emt 0:00:03]} 28. Bh3 {[%emt 0:00:07]} f3 {[%emt 0:00:02]} 29. Rc4 {[%emt 0:00:07]} (29. Rc8 $5 {[%cal Rc8a8]}) 29... Kd6 {[%emt 0:00:13]} 30. Rc8 $1 {[%emt 0:00:07]} Bxh2 {[%emt 0:00:13]} 31. Rd8+ {[%emt 0:00:02]} Ke5 {[%emt 0:00:02]} 32. Rd7 {[%emt 0:00:00][%csl LRa7,LRf7]} h5 {[%emt 0:00:30]} ({Don't play} 32... Kxe4 33. Rxf7 h5 34. Rg7 $16) 33. Rxf7 {[%emt 0:00:04]} g5 {[%emt 0:00:01] White must now prevent ...g4.} ({But not} 33... Kxe4 34. Rg7 $16) 34. Rh7 {[%emt 0:00:02]} Kxe4 {[%emt 0:00:09]} 35. Rxh5 {[%emt 0:00:03]} Bf4 {[%emt 0:00:01]} 36. Rh7 {[%emt 0:00:07][%mdl 1024] White has compensation.} a5 {[%emt 0:00:01]} 37. Ra7 {[%emt 0:00:11]} Bd6 {[%emt 0:00:06]} 38. a4 {[%emt 0:00:03]} Bc5 {[%emt 0:00:05]} 39. Bd7 {[%emt 0:00:07]} Kf4 {[%emt 0:00:07]} 40. Ra8 {[%emt 0:00:01]} Nb3 {[%emt 0:00:03] And now ...Nd2+ would win.} 41. Bc6 {[%emt 0:00:09]} g4 {[%emt 0:00:05]} 42. Ra7 {[%emt 0:00:02]} Bxf2 $2 {[%emt 0:00:09][%mdl 8192]} 43. Kxf2 $18 {[%emt 0:00:08]} g3+ {[%emt 0:00:01]} 44. Kg1 $2 {[%emt 0:00:00]} (44. Kf1 $1 $18 Nd4 45. Bb5) 44... Nd4 $11 {[%emt 0:00:01]} 45. Rf7+ {[%emt 0:00:31]} Ke3 {[%emt 0:00:01]} 46. Re7+ {[%emt 0:00:03]} Kd2 {[%emt 0:00:05] ( -> ...Ne2+)} 47. Rd7 {[%emt 0:00:02]} Ke1 $2 {[%emt 0:00:04][%mdl 8192]} 48. Bxf3 $2 {[%emt 0:00:07]} (48. Bb5 $18 Nxb5 49. Re7+ Kd2 50. axb5) 48... Nxf3+ {[%emt 0:00:01]} 49. Kg2 {[%emt 0:00:01]} Nd2 {[%emt 0:00:01]} 50. Kxg3 {[%emt 0:00:09]} Nc4 $2 {[%emt 0:00:03][%mdl 8192] [#]} (50... Ke2 $11) 51. Kf4 $1 {[%emt 0:00:05] White mates.} Ke2 {[%emt 0:00:03] [#]} 52. Ke4 $1 {[%emt 0:00:03]} Nb2 {[%emt 0:00:06]} 53. Rd4 {Weighted Error Value: White=0.49/Black=0.45} 1-0

[Event "Super United Croatia GCT Blitz 2022"]
[Site "Zagreb"]
[Date "2022.07.23"]
[Round "3"]
[White "Van Foreest, Jorden"]
[Black "Topalov, Veselin"]
[Result "0-1"]
[ECO "B50"]
[WhiteElo "2678"]
[BlackElo "2728"]
[Annotator "TA"]
[PlyCount "72"]
[EventDate "2022.07.20"]
[EventType "tourn"]
[EventCountry "CRO"]
[SourceTitle "playchess.com"]
[Source "ChessBase"]
[SourceQuality "1"]
[TimeControl "300+2"]

{[%evp 15,72,0,16,12,4,12,11,13,15,16,8,9,11,11,12,12,18,0,29,0,0,0,0,-23,-22,-21,-2,0,0,0,0,-13,0,0,0,0,0,0,0,0,0,0,0,-8,-7,-3,-12,-716,-688,-703,-704,-715,-715,-686,-639,-636,-631,-609,-600]} 1. e4 {[%emt 0:00:02]} c5 {[%emt 0:00:02]} 2. Nf3 {[%emt 0:00:02]} d6 {[%emt 0:00:01]} 3. Bc4 {[%emt 0:00:03]} Nf6 {[%emt 0:00:02]} 4. d3 {[%emt 0:00:02]} Nc6 {[%emt 0:00:02]} 5. O-O {[%emt 0:00:03]} e6 {[%emt 0:00:02]} 6. a4 {[%emt 0:00:04]} Be7 {[%emt 0:00:03]} 7. Bb3 {[%emt 0:00:05]} O-O {[%emt 0:00:04]} 8. c3 {[%emt 0:00:05]} a6 {[%emt 0:00:05]} 9. Re1 {[%emt 0:00:02] B50: Sicilian: 2...d6, Miscellaneous.} Rb8 $5 {[%emt 0:00:07][%mdl 4] A promising side line.} 10. Bf4 {[%emt 0:00:02]} e5 {[%emt 0:00:04] [#]} 11. Bg5 $146 {[%emt 0:00:03] The position is equal.} ({Predecessor:} 11. Bg3 b5 12. axb5 axb5 13. d4 exd4 14. e5 dxe5 15. Nxe5 Nxe5 16. Bxe5 Bd6 17. cxd4 {0-1 (82) Ertan,C (2238)-Mamedov,R (2651) Kocaeli 2015}) 11... h6 {[%emt 0:00:03]} 12. Bxf6 {[%emt 0:00:05]} Bxf6 {[%emt 0:00:01]} 13. Nbd2 {[%emt 0:00:04]} g6 {[%emt 0:00:02]} 14. Nc4 {[%emt 0:00:07]} Bg7 {[%emt 0:00:03]} 15. Ne3 {[%emt 0:00:13]} Kh7 {[%emt 0:00:02]} 16. h3 {[%emt 0:00:06]} b6 {[%emt 0:00:07]} 17. Bd5 {[%emt 0:00:07]} Ne7 {[%emt 0:00:01]} 18. Bc4 {[%emt 0:00:01]} Bb7 {[%emt 0:00:30]} 19. b4 {[%emt 0:00:29]} cxb4 {[%emt 0:00:14]} 20. cxb4 {[%emt 0:00:01]} d5 {[%emt 0:00:01]} 21. exd5 {[%emt 0:00:02]} b5 {[%emt 0:00:16]} 22. axb5 {[%emt 0:00:06]} axb5 {[%emt 0:00:01]} 23. Bb3 {[%emt 0:00:11]} Nxd5 {[%emt 0:00:03]} 24. Nxd5 {[%emt 0:00:13]} Bxd5 {[%emt 0:00:01]} 25. Rc1 {[%emt 0:00:14]} Bxf3 {[%emt 0:01:22]} 26. Qxf3 {[%emt 0:00:02]} Rb6 {[%emt 0:00:01]} 27. Rc5 {[%emt 0:00:30]} ({Not} 27. Bxf7 $2 Rf6 28. Bxg6+ Rxg6 $19) 27... Qd4 {[%emt 0:00:05]} 28. Qe4 {[%emt 0:00:08]} ({But not} 28. Bxf7 $2 Qd7 29. Bxg6+ Rxg6 $19) 28... Qb2 {[%emt 0:00:04]} 29. Qd5 {[%emt 0:00:13]} Rf6 {[%emt 0:00:03]} 30. Rc2 {[%emt 0:00:02]} Qa3 {[%emt 0:00:10]} 31. Rxe5 $2 {[%emt 0:00:32][%mdl 8192] This move loses the game for White.} (31. Ba2 $11) 31... Qa1+ $19 {[%emt 0:00:13] Black is clearly winning.} 32. Kh2 {[%emt 0:00:01] [#]} Rd6 $3 {[%emt 0:00:00][%mdl 576] Skewer} 33. Re4 {[%emt 0:00:34]} (33. Qxb5 Bxe5+) 33... Rxd5 {[%emt 0:00:03]} 34. Bxd5 {[%emt 0:00:02]} Qf6 {[%emt 0:00:06] Threatens to win with ...Qd6+.} 35. g3 {[%emt 0:00:04]} Rd8 {[%emt 0:00:01]} 36. Rf4 {[%emt 0:00:04] [#]} Qxf4 $3 {[%emt 0:00:04][%mdl 512] Weighted Error Value: White=0.33/Black=0.05 (flawless)} 0-1

[Event "Super United Croatia GCT Blitz 2022"]
[Site "Zagreb"]
[Date "2022.07.23"]
[Round "4"]
[White "Nepomniachtchi, Ian"]
[Black "Mamedyarov, Shakhriyar"]
[Result "1/2-1/2"]
[ECO "C30"]
[WhiteElo "2766"]
[BlackElo "2759"]
[Annotator "TA"]
[PlyCount "76"]
[EventDate "2022.07.20"]
[EventType "tourn"]
[EventCountry "CRO"]
[SourceTitle "playchess.com"]
[Source "ChessBase"]
[SourceQuality "1"]
[TimeControl "300+2"]

{[%evp 9,76,32,31,29,35,30,18,24,39,33,37,-10,41,9,14,0,8,2,32,17,20,18,10,-34,-14,-39,-16,-8,4,-20,-14,-14,0,0,0,0,0,0,14,14,19,17,17,15,17,9,14,3,5,3,6,3,3,6,7,7,7,1,7,1,1,0,0,0,0,0,0,0,0]} 1. e4 {[%emt 0:00:02]} e5 {[%emt 0:00:01]} 2. f4 {[%emt 0:00:01]} Nf6 {[%emt 0:00:02]} 3. fxe5 {[%emt 0:00:02]} Nxe4 {[%emt 0:00:01]} 4. Nf3 {[%emt 0:00:00]} Ng5 {[%emt 0:00:01]} 5. d4 {[%emt 0:00:02]} Nxf3+ {[%emt 0:00:01]} 6. Qxf3 {[%emt 0:00:01] [#] aiming for Bc4. C30: King's Gambit Declined.} ({Stronger than} 6. gxf3 Qh4+ 7. Ke2 d6 $17) 6... Qh4+ 7. Qf2 Qxf2+ {[%emt 0:00:02]} 8. Kxf2 {[%emt 0:00:02]} d6 {[%emt 0:00:01]} 9. exd6 {[%emt 0:00:01]} Bxd6 {[%emt 0:00:01]} 10. Nd2 {[%emt 0:00:08] [#]} (10. Bd3 $14) 10... O-O $146 {[%emt 0:00:08]} (10... Bf5 $11) ({Predecessor:} 10... c6 11. Nc4 Bc7 12. Kf3 Be6 13. Bf4 Bxf4 14. Kxf4 Ke7 15. Re1 Rd8 16. c3 Kf8 {½-½ (35) Stocek,J (2515)-Timoscenko,G (2515) Slovakia 2001}) 11. Nc4 {[%emt 0:00:11]} Be7 {[%emt 0:00:01]} 12. Bf4 {[%emt 0:00:03]} Be6 {[%emt 0:00:06]} 13. Rd1 {[%emt 0:00:08]} (13. Bxc7 Bxc4 14. Bxc4 Rc8 15. Bxb8 Rxc4 $15) 13... c6 {[%emt 0:00:02][%cal Bc7c6,Bc6c5][%mdl 32]} 14. Be2 {[%emt 0:00:24]} Nd7 {[%emt 0:00:08]} 15. Na5 {[%emt 0:00:03]} g5 {[%emt 0:00:01]} 16. Bd2 {[%emt 0:00:23]} Nf6 {[%emt 0:00:42] White should prevent ...Ne4+.} 17. Bd3 {[%emt 0:00:10] Against Ne4+} c5 {[%emt 0:00:17]} 18. h3 {[%emt 0:00:16] Against Ng4+. The position is equal.} Rac8 {[%emt 0:00:20] [#] ...c4 is the strong threat.} 19. Rhe1 {[%emt 0:01:12]} ({Much worse is} 19. Nxb7 c4 20. Be2 Ne4+ 21. Kg1 Bd5 $17) 19... b6 {[%emt 0:00:35]} 20. Nc4 {[%emt 0:00:16]} cxd4 {[%emt 0:00:03]} 21. Bxg5 {[%emt 0:00:22]} Ng4+ {[%emt 0:00:02]} 22. hxg4 {[%emt 0:00:02]} Bxg5 {[%emt 0:00:01]} 23. Nd6 {[%emt 0:00:01]} Rc6 {[%emt 0:00:26]} 24. Nf5 {[%emt 0:00:02]} Bxf5 {[%emt 0:00:01]} (24... Rc5 {is more complex.} 25. Rh1 Rd8 26. Rh3 Bxf5 27. Bxf5 h6) 25. Bxf5 {[%emt 0:00:05]} Rd8 {[%emt 0:00:05]} 26. Kf3 {[%emt 0:00:11]} Kg7 {[%emt 0:00:03]} 27. Re2 {[%emt 0:00:19]} Rc5 {[%emt 0:00:03]} 28. g3 {[%emt 0:00:11]} h6 {[%emt 0:00:06]} 29. Kg2 {[%emt 0:00:03]} Rc7 {[%emt 0:00:03]} 30. Rf1 {[%emt 0:00:09]} Re7 {[%emt 0:00:06]} 31. Rxe7 {[%emt 0:00:02]} Bxe7 $11 {[%emt 0:00:02][%mdl 4096] Endgame KRB-KRB} 32. Bd3 {[%emt 0:00:01]} Bf6 {[%emt 0:00:07]} 33. Rf5 {[%emt 0:00:01]} Re8 {[%emt 0:00:07]} 34. Kf2 {[%emt 0:00:25]} Re5 {[%emt 0:00:11]} 35. Kf3 {[%emt 0:00:05]} Re3+ {[%emt 0:00:03]} 36. Kf2 {[%emt 0:00:02]} Re5 {[%emt 0:00:01]} 37. Kf3 {[%emt 0:00:00]} Re3+ {[%emt 0:00:01]} 38. Kf2 {[%emt 0:00:01]} Re5 {[%emt 0:00:01] Weighted Error Value: White=0.09 (flawless) /Black=0.07 (flawless)} 1/2-1/2